fUSD/lending_fUSD_20250911
["ID","MTS","AMOUNT","RATE_DAILY","PERIOD"]
[384921566,1757627453075,-1786.28,0.00027397,7]
[384921567,1757627453084,-1265.01,0.00027397,7]
[384921568,1757627453093,-2703.11,0.00027397,7]
[384921569,1757627453102,-372.53797179,0.00027397,7]
[384921570,1757627453118,-34.65202821,0.00027397,7]
[384921571,1757627453127,-400.0,0.00027397,7]
[384921572,1757627453136,-220.34797197,0.00027397,7]
[384921573,1757627453147,-467.95202803,0.00027397,7]
[384921574,1757627453156,-1720.61456271,0.00027397,7]
[384921575,1757627453168,-848.11543729,0.00027397,7]
[384921576,1757627453178,-678.34,0.00027397,7]
[384921577,1757627453187,-400.0,0.00027397,7]
[384921578,1757627453196,-151.0,0.00027397,7]
[384921579,1757627453206,-151.0,0.00027397,7]
[384921580,1757627453216,-2316.54512025,0.00027397,7]
[384921581,1757627453237,-790.31487975,0.00027397,7]
[384921582,1757627453246,-396.98559256,0.00027397,7]
[384921583,1757627453262,-3.01440744,0.00027397,7]
[384921584,1757627453272,-1591.84,0.00027397,7]
[384921585,1757627453282,-151.0,0.00027397,7]
[384921586,1757627453291,-151.0,0.00027397,7]
[384921587,1757627453305,-423.35,0.00027397,7]
[384921588,1757627453314,-2512.36,0.00027397,7]
[384921589,1757627453324,-400.0,0.00027397,7]
[384921590,1757627453333,-151.0,0.00027397,7]
[384921591,1757627453342,-151.0,0.00027397,7]
[384921592,1757627453352,-400.0,0.00027397,7]
[384921593,1757627453361,-1473.43419249,0.00027397,7]
[384921594,1757627453373,-635.43999999,0.00027397,7]
[384921595,1757627453384,-249.74580752,0.00027397,7]
[384921596,1757627453394,-153.715518,0.00027397,7]
[384921597,1757627453403,-125.04655958,0.00027397,7]
[384921598,1757627453426,-530.71344042,0.00027397,7]
[384921599,1757627453436,-151.0,0.00027397,7]
[384921600,1757627453445,-151.0,0.00027397,7]
[384921601,1757627453454,-358.9143,0.00027397,7]
[384921602,1757627453463,-400.0,0.00027397,7]
[384921603,1757627453474,-655.88,0.00027397,7]
[384921604,1757627453483,-358.9143,0.00027397,7]
[384921605,1757627453492,-400.0,0.00027397,7]
[384921606,1757627453501,-238.53841175,0.00027397,7]
[384921607,1757627453510,-400.0,0.00027397,7]
[384921608,1757627453519,-1989.93,0.00027397,7]
[384921609,1757627453529,-400.0,0.00027397,7]
[384921610,1757627453538,-4694.96400749,0.00027397,7]
[384921611,1757627453550,-368.12173798,0.00027397,7]
[384921612,1757627453565,-1562.06425453,0.00027397,7]
[384921613,1757627453574,-358.9143,0.00027397,7]
[384921614,1757627453584,-358.9143,0.00027397,7]
[384921615,1757627453594,-1565.73,0.00027397,7]
[384921616,1757627453603,-400.0,0.00027397,7]
[384921617,1757627453613,-2433.07,0.00027397,7]
[384921618,1757627453988,-358.9143,0.00027397,7]
[384921619,1757627454015,-358.9143,0.00027397,7]
[384921620,1757627454025,-400.0,0.00027397,7]
[384921621,1757627454034,-1949.62,0.00027397,7]
[384921622,1757627454043,-2320.6,0.00027397,7]
[384921623,1757627454053,-358.9143,0.00027397,7]
[384921624,1757627454064,-400.0,0.00027397,7]
[384921625,1757627454073,-358.9143,0.00027397,7]
[384921626,1757627454082,-3743.48,0.00027397,7]
[384921627,1757627454092,-1700.41,0.00027397,7]
[384921628,1757627454104,-2218.78,0.00027397,7]
[384921629,1757627454114,-581.88,0.00027397,7]
[384921630,1757627454123,-400.0,0.00027397,7]
[384921631,1757627454133,-400.0,0.00027397,7]
[384921632,1757627454142,-601.83,0.00027397,7]
[384921633,1757627454151,-400.0,0.00027397,7]
[384921634,1757627454160,-400.0,0.00027397,7]
[384921635,1757627454170,-400.0,0.00027397,7]
[384921636,1757627454179,-2249.08,0.00027397,7]
[384921637,1757627454188,-2332.54,0.00027397,7]
[384921638,1757627454198,-726.15,0.00027397,7]
[384921639,1757627454207,-400.0,0.00027397,7]
[384921640,1757627454218,-2742.88,0.00027397,7]
[384921641,1757627454227,-400.0,0.00027397,7]
[384921642,1757627454237,-459.34,0.00027397,7]
[384921643,1757627454246,-400.0,0.00027397,7]
[384921644,1757627454255,-2125.99,0.00027397,7]
[384921645,1757627454265,-877.79,0.00027397,7]
[384921646,1757627454279,-400.0,0.00027397,7]
[384921647,1757627454288,-400.0,0.00027397,7]
[384921648,1757627454301,-400.0,0.00027397,7]
[384921649,1757627454310,-1691.78,0.00027397,7]
[384921650,1757627454320,-400.0,0.00027397,7]
[384921651,1757627454329,-400.0,0.00027397,7]
[384921652,1757627454340,-2192.92,0.00027397,7]
[384921653,1757627454349,-2438.57,0.00027397,7]
[384921654,1757627454359,-1723.17,0.00027397,7]
[384921655,1757627454368,-2371.58,0.00027397,7]
[384921656,1757627454379,-882.4,0.00027397,7]
[384921657,1757627454389,-400.0,0.00027397,7]
[384921658,1757627454400,-2985.19,0.00027397,7]
[384921659,1757627454410,-151.0,0.00027397,7]
[384921660,1757627454423,-1552.77,0.00027397,7]
[384921661,1757627454432,-151.0,0.00027397,7]
[384921662,1757627454442,-2972.96,0.00027397,7]
[384921663,1757627454452,-849.58,0.00027397,7]
[384921664,1757627454462,-512.39,0.00027397,7]
[384921665,1757627454471,-472.361503,0.00027397,7]
[384921666,1757627454482,-3150.88,0.00027397,7]
[384921667,1757627454493,-151.0,0.00027397,7]
[384921668,1757627454504,-472.361503,0.00027397,7]
[384921669,1757627454516,-151.0,0.00027397,7]
[384921670,1757627454525,-400.0,0.00027397,7]
[384921671,1757627454535,-2678.71,0.00027397,7]
[384921672,1757627454547,-1003.52,0.00027397,7]
[384921673,1757627454559,-472.361503,0.00027397,7]
[384921674,1757627454568,-151.0,0.00027397,7]
[384921675,1757627454578,-472.361503,0.00027397,7]
[384921676,1757627454588,-151.0,0.00027397,7]
[384921677,1757627454600,-472.361503,0.00027397,7]
[384921678,1757627454612,-151.0,0.00027397,7]
[384921679,1757627454621,-488.87123834,0.00027397,7]
[384921680,1757627454631,-472.361503,0.00027397,7]
[384921681,1757627454641,-131.32117204,0.00027397,7]
[384921682,1757627455145,-588.77502464,0.00026889,2]
[384921683,1757627455155,-588.77502464,0.00026889,2]
[384921684,1757627455165,-588.77502464,0.00026889,2]
[384921685,1757627455174,-588.77502464,0.00026889,2]
[384921686,1757627455184,-588.77502464,0.00026889,2]
[384921687,1757627455194,-588.77502464,0.00026889,2]
[384921688,1757627455204,-588.77502464,0.00026889,2]
[384921689,1757627455213,-588.77502464,0.00026889,2]
[384921690,1757627455223,-588.77502464,0.00026889,2]
[384921691,1757627455232,-588.77502464,0.00026889,2]
[384921692,1757627455242,-588.77502464,0.00026889,2]
[384921693,1757627455252,-588.77502464,0.00026889,2]
[384921694,1757627455262,-588.77502464,0.00026889,2]
[384921695,1757627455272,-588.77502464,0.00026889,2]
[384921696,1757627455281,-588.77502464,0.00026889,2]
[384921697,1757627455290,-588.77502464,0.00026889,2]
[384921698,1757627455304,-633.02882796,0.00027397,7]
[384921699,1757627455315,-151.0,0.00027397,7]
[384921700,1757627455325,-1462.94,0.00027397,7]
[384921701,1757627455334,-2234.94,0.00027397,7]
[384921702,1757627455343,-2578.26,0.00027397,7]
[384921703,1757627455353,-400.0,0.00027397,7]
[384921704,1757627455363,-500.0,0.00027397,7]
[384921705,1757627455372,-472.361503,0.00027397,7]
[384921706,1757627455382,-1828.11,0.00027397,7]
[384921707,1757627455391,-400.0,0.00027397,7]
[384921708,1757627455400,-472.361503,0.00027397,7]
[384921709,1757627455410,-512.9432088,0.00027397,7]
[384921710,1757627455419,-470.08,0.00027397,7]
[384921711,1757627455428,-151.0,0.00027397,7]
[384921712,1757627455437,-151.0,0.00027397,7]
[384921713,1757627455447,-1307.56,0.00027397,7]
[384921714,1757627455456,-400.0,0.00027397,7]
[384921715,1757627455465,-400.0,0.00027397,7]
[384921716,1757627455474,-151.0,0.00027397,7]
[384921717,1757627455483,-400.0,0.00027397,7]
[384921718,1757627455493,-151.0,0.00027397,7]
[384921719,1757627455502,-1772.99,0.00027397,7]
[384921720,1757627455511,-151.0,0.00027397,7]
[384921721,1757627455521,-151.0,0.00027397,7]
[384921722,1757627455530,-2097.33,0.00027397,7]
[384921723,1757627455540,-151.0,0.00027397,7]
[384921724,1757627455549,-151.0,0.00027397,7]
[384921725,1757627455559,-933.0,0.00027397,7]
[384921726,1757627455568,-151.0,0.00027397,7]
[384921727,1757627455577,-151.0,0.00027397,7]
[384921728,1757627455586,-283.415944,0.00027397,7]
[384921729,1757627455596,-240.598448,0.00027397,7]
[384921730,1757627455605,-452.58668054,0.00027397,7]
[384921731,1757627455614,-151.0,0.00027397,7]
[384921732,1757627455624,-952.28,0.00027397,7]
[384921733,1757627455633,-151.0,0.00027397,7]
[384921734,1757627455643,-1662.68,0.00027397,7]
[384921735,1757627455654,-400.0,0.00027397,7]
[384921736,1757627455664,-151.0,0.00027397,7]
[384921737,1757627455673,-151.0,0.00027397,7]
[384921738,1757627455682,-400.0,0.00027397,7]
[384921739,1757627455691,-400.0,0.00027397,7]
[384921740,1757627455701,-151.0,0.00027397,7]
[384921741,1757627455710,-610.96,0.00027397,7]
[384921742,1757627455719,-7841.89,0.00027397,7]
[384921743,1757627455729,-151.0,0.00027397,7]
[384921744,1757627455738,-151.0,0.00027397,7]
[384921745,1757627455747,-400.0,0.00027397,7]
[384921746,1757627455757,-157.166686,0.00027397,7]
[384921747,1757627455766,-400.0,0.00027397,7]
[384921748,1757627455775,-400.0,0.00027397,7]
[384921749,1757627455784,-151.0,0.00027397,7]
[384921750,1757627455794,-400.0,0.00027397,7]
[384921751,1757627455803,-151.0,0.00027397,7]
[384921752,1757627455812,-432.81093983,0.00027397,7]
[384921753,1757627455821,-151.0,0.00027397,7]
[384921754,1757627455830,-151.0,0.00027397,7]
[384921755,1757627455839,-236.037191,0.00027397,7]
[384921756,1757627455848,-1587.28,0.00027397,7]
[384921757,1757627455860,-1604.78,0.00027397,7]
[384921758,1757627455869,-2174.86,0.00027397,7]
[384921759,1757627455878,-11061.06,0.00027397,7]
[384921760,1757627455888,-400.0,0.00027397,7]
[384921761,1757627455897,-1272.03,0.00027397,7]
[384921762,1757627455907,-400.0,0.00027397,7]
[384921763,1757627455916,-151.0,0.00027397,7]
[384921764,1757627455925,-596.32,0.00027397,7]
[384921765,1757627455934,-565.46,0.00027397,7]
[384921766,1757627455945,-400.0,0.00027397,7]
[384921767,1757627455954,-400.0,0.00027397,7]
[384921768,1757627455962,-2131.53,0.00027397,7]
[384921769,1757627455971,-400.0,0.00027397,7]
[384921770,1757627455980,-2498.42,0.00027397,7]
[384921771,1757627455990,-6488.57,0.00027397,7]
[384921772,1757627455999,-151.0,0.00027397,7]
[384921773,1757627456009,-152.433103,0.00027397,7]
[384921774,1757627456018,-5525.7,0.00027397,7]
[384921775,1757627456027,-400.0,0.00027397,7]
[384921776,1757627456036,-400.0,0.00027397,7]
[384921777,1757627456045,-1601.69,0.00027397,7]
[384921778,1757627456054,-455.17,0.00027397,7]
[384921779,1757627456063,-247.58368358,0.00027397,7]
[384921780,1757627456072,-1668.79,0.00027397,7]
[384921781,1757627456081,-1352.16,0.00027397,7]
[384921782,1757627456090,-400.0,0.00027397,7]
[384921783,1757627456100,-400.0,0.00027397,7]
[384921784,1757627456110,-400.0,0.00027397,7]
[384921785,1757627456119,-400.0,0.00027397,7]
[384921786,1757627456128,-11877.61,0.00027397,7]
[384921787,1757627456137,-2986.7,0.00027397,7]
[384921788,1757627456148,-400.0,0.00027397,7]
[384921789,1757627456158,-400.0,0.00027397,7]
[384921790,1757627456170,-400.0,0.00027397,7]
[384921791,1757627456179,-400.0,0.00027397,7]
[384921792,1757627456189,-400.0,0.00027397,7]
[384921793,1757627456199,-400.0,0.00027397,7]
[384921794,1757627456208,-151.0,0.00027397,7]
[384921795,1757627456217,-151.0,0.00027397,7]
[384921796,1757627456227,-2328.89,0.00027397,7]
[384921797,1757627456238,-400.0,0.00027397,7]
[384921798,1757627456250,-400.0,0.00027397,7]
[384921799,1757627456259,-151.0,0.00027397,7]
[384921800,1757627456268,-151.0,0.00027397,7]
[384921801,1757627456371,-4724.84,0.00027397,7]
[384921802,1757627456381,-400.0,0.00027397,7]
[384921803,1757627456390,-400.0,0.00027397,7]
[384921804,1757627456400,-2071.12,0.00027397,7]
[384921805,1757627456409,-3292.32,0.00027397,7]
[384921806,1757627456419,-204.778849,0.00027397,7]
[384921807,1757627456428,-400.0,0.00027397,7]
[384921808,1757627456437,-400.0,0.00027397,7]
[384921809,1757627456447,-657.95,0.00027397,7]
[384921810,1757627456457,-587.88292619,0.00027397,7]
[384921811,1757627457123,-588.77502464,0.00026889,2]
[384921812,1757627457132,-588.77502464,0.00026889,2]
[384921813,1757627457141,-588.77502464,0.00026889,2]
[384921814,1757627457150,-1429.31707381,0.00027397,7]
[384921815,1757627457159,-400.0,0.00027397,7]
[384921816,1757627457170,-2362.15,0.00027397,7]
[384921817,1757627457179,-151.0,0.00027397,7]
[384921818,1757627457189,-1981.94,0.00027397,7]
[384921819,1757627457199,-151.0,0.00027397,7]
[384921820,1757627457208,-914.7,0.00027397,7]
[384921821,1757627457217,-710.2,0.00027397,7]
[384921822,1757627457226,-151.0,0.00027397,7]
[384921823,1757627457235,-400.0,0.00027397,7]
[384921824,1757627457245,-500.0,0.00027397,7]
[384921825,1757627457255,-400.0,0.00027397,7]
[384921826,1757627457264,-847.93,0.00027397,7]
[384921827,1757627457273,-151.0,0.00027397,7]
[384921828,1757627457283,-500.0,0.00027397,7]
[384921829,1757627457292,-1045.52,0.00027397,7]
[384921830,1757627457303,-752.72,0.00027397,7]
[384921831,1757627457312,-2021.8,0.00027397,7]
[384921832,1757627457321,-400.0,0.00027397,7]
[384921833,1757627457331,-400.0,0.00027397,7]
[384921834,1757627457341,-151.0,0.00027397,7]
[384921835,1757627457350,-151.0,0.00027397,7]
[384921836,1757627457359,-400.0,0.00027397,2]
[384921837,1757627457369,-500.0,0.00027397,2]
[384921838,1757627457379,-1204.45,0.00027397,7]
[384921839,1757627457389,-2367.19,0.00027397,7]
[384921840,1757627457399,-1922.67,0.00027397,7]
[384921841,1757627457407,-400.0,0.00027397,7]
[384921842,1757627457417,-400.0,0.00027397,3]
[384921843,1757627457426,-2147.9,0.00027397,7]
[384921844,1757627457435,-400.0,0.00027397,7]
[384921845,1757627457444,-539.33562701,0.00027397,7]
[384921846,1757627457453,-737.4,0.00027397,7]
[384921847,1757627457463,-400.0,0.00027397,7]
[384921848,1757627457472,-610.19,0.00027397,7]
[384921849,1757627457481,-2005.27,0.00027397,7]
[384921850,1757627457491,-2282.8,0.00027397,7]
[384921851,1757627457499,-868.86,0.00027397,7]
[384921852,1757627457509,-500.0,0.00027397,7]
[384921853,1757627457518,-400.0,0.00027397,7]
[384921854,1757627457527,-2067.86,0.00027397,7]
[384921855,1757627457536,-400.0,0.00027397,7]
[384921856,1757627457545,-400.0,0.00027397,7]
[384921857,1757627457554,-1662.86,0.00027397,7]
[384921858,1757627457563,-400.0,0.00027397,7]
[384921859,1757627457572,-339.78,0.00027397,7]
[384921860,1757627457581,-400.0,0.00027397,7]
[384921861,1757627457590,-511.55254511,0.00027397,7]
[384921862,1757627457599,-973.3,0.00027397,7]
[384921863,1757627457608,-581.46,0.00027397,7]
[384921864,1757627457617,-2104.81,0.00027397,7]
[384921865,1757627457627,-901.74,0.00027397,7]
[384921866,1757627457636,-3042.61,0.00027397,7]
[384921867,1757627457647,-1564.75,0.00027397,7]
[384921868,1757627457658,-437.64749137,0.00027397,7]
[384921869,1757627457673,-195.67250863,0.00027397,7]
[384921870,1757627457683,-400.0,0.00027397,7]
[384921871,1757627457692,-406.9,0.00027397,7]
[384921872,1757627457702,-400.0,0.00027397,7]
[384921873,1757627457713,-2798.29,0.00027397,7]
[384921874,1757627457723,-825.48,0.00027397,7]
[384921875,1757627457734,-473.92,0.00027397,7]
[384921876,1757627457745,-400.0,0.00027397,7]
[384921877,1757627457754,-400.0,0.00027397,7]
[384921878,1757627457763,-1232.08,0.00027397,7]
[384921879,1757627457772,-1649.61,0.00027397,7]
[384921880,1757627457781,-400.0,0.00027397,7]
[384921881,1757627457790,-400.0,0.00027397,7]
[384921882,1757627457799,-400.0,0.00027397,7]
[384921883,1757627457808,-400.0,0.00027397,7]
[384921884,1757627457817,-400.0,0.00027397,7]
[384921885,1757627457826,-493.86,0.00027397,7]
[384921886,1757627457836,-401.49,0.00027397,7]
[384921887,1757627457845,-151.0,0.00027397,7]
[384921888,1757627457854,-400.0,0.00027397,7]
[384921889,1757627457863,-151.0,0.00027397,7]
[384921890,1757627457873,-2428.81,0.00027397,7]
[384921891,1757627457883,-545.25,0.00027397,7]
[384921892,1757627457892,-151.0,0.00027397,7]
[384921893,1757627457901,-151.0,0.00027397,7]
[384921894,1757627457910,-151.0,0.00027397,7]
[384921895,1757627457919,-151.0,0.00027397,7]
[384921896,1757627457928,-400.0,0.00027397,7]
[384921897,1757627457938,-3292.07,0.00027397,7]
[384921898,1757627457947,-400.0,0.00027397,7]
[384921899,1757627457956,-1770.26,0.00027397,7]
[384921900,1757627457966,-500.0,0.00027397,7]
[384921901,1757627457975,-500.0,0.00027397,7]
[384921902,1757627457984,-400.0,0.00027397,7]
[384921903,1757627457994,-400.0,0.00027397,7]
[384921904,1757627458003,-575.7,0.00027397,7]
[384921905,1757627458012,-1537.35,0.00027397,7]
[384921906,1757627458021,-500.0,0.00027397,7]
[384921907,1757627458030,-151.0,0.00027397,7]
[384921908,1757627458039,-400.0,0.00027397,7]
[384921909,1757627458048,-500.0,0.00027397,7]
[384921910,1757627458057,-151.0,0.00027397,7]
[384921911,1757627458066,-2235.0,0.00027397,7]
[384921912,1757627458075,-400.0,0.00027397,2]
[384921913,1757627458084,-400.0,0.00027397,7]
[384921914,1757627458093,-400.0,0.00027397,7]
[384921915,1757627458103,-151.0,0.00027397,7]
[384921916,1757627458112,-151.0,0.00027397,7]
[384921917,1757627458121,-350.375231,0.00027397,7]
[384921918,1757627458130,-151.0,0.00027397,7]
[384921919,1757627458139,-414.63672015,0.00027397,7]
[384921920,1757627458149,-223.683377,0.00027397,7]
[384921921,1757627458158,-4315.46,0.00027397,7]
[384921922,1757627458167,-400.0,0.00027397,7]
[384921923,1757627458176,-400.0,0.00027397,7]
[384921924,1757627458186,-2043.23,0.00027397,7]
[384921925,1757627458195,-542.72,0.00027397,7]
[384921926,1757627458204,-497.85,0.00027397,7]
[384921927,1757627458214,-400.0,0.00027397,7]
[384921928,1757627458223,-774.82,0.00027397,7]
[384921929,1757627458233,-400.0,0.00027397,7]
[384921930,1757627458242,-838.23756286,0.00027397,7]
[384921931,1757627458277,-588.77502464,0.00026889,2]
[384921932,1757627458287,-1192.20243714,0.00027397,7]
[384921933,1757627458296,-400.0,0.00027397,7]
[384921934,1757627458310,-444.49,0.00027397,7]
[384921935,1757627458319,-151.0,0.00027397,7]
[384921936,1757627458328,-400.0,0.00027397,7]
[384921937,1757627458338,-151.0,0.00027397,7]
[384921938,1757627458347,-2146.43111429,0.00027397,7]
[384921939,1757627458362,-588.77502464,0.00026889,2]
[384921940,1757627458371,-310.75888571,0.00027397,7]
[384921941,1757627458381,-180.026668,0.00027397,7]
[384921942,1757627458391,-400.0,0.00027397,7]
[384921943,1757627458401,-400.0,0.00027397,7]
[384921944,1757627458410,-400.0,0.00027397,7]
[384921945,1757627458419,-400.0,0.00027397,7]
[384921946,1757627458429,-400.0,0.00027397,7]
[384921947,1757627458439,-2221.42,0.00027397,7]
[384921948,1757627458448,-2267.83,0.00027397,7]
[384921949,1757627458458,-150.0,0.00027397,2]
[384921950,1757627458467,-400.0,0.00027397,7]
[384921951,1757627458476,-2221.02613,0.00027397,7]
[384921952,1757627458485,-400.0,0.00027397,7]
[384921953,1757627458494,-400.0,0.00027397,7]
[384921954,1757627458503,-2221.02613,0.00027397,7]
[384921955,1757627458512,-153.364258,0.00027397,7]
[384921956,1757627458522,-2757.782727,0.00027397,7]
[384921957,1757627458532,-400.0,0.00027397,7]
[384921958,1757627458542,-2757.782727,0.00027397,7]
[384921959,1757627458552,-400.0,0.00027397,7]
[384921960,1757627458562,-400.0,0.00027397,7]
[384921961,1757627458571,-2221.02613,0.00027397,7]
[384921962,1757627458580,-400.0,0.00027397,7]
[384921963,1757627458590,-2757.782727,0.00027397,7]
[384921964,1757627458599,-2221.02613,0.00027397,7]
[384921965,1757627458608,-2757.782727,0.00027397,7]
[384921966,1757627458618,-1381.33,0.00027397,7]
[384921967,1757627458628,-400.0,0.00027397,7]
[384921968,1757627458639,-400.0,0.00027397,7]
[384921969,1757627458648,-400.0,0.00027397,7]
[384921970,1757627458657,-2044.64,0.00027397,7]
[384921971,1757627458666,-596.22,0.00027397,7]
[384921972,1757627458675,-2221.02613,0.00027397,7]
[384921973,1757627458685,-977.79,0.00027397,7]
[384921974,1757627458699,-400.0,0.00027397,7]
[384921975,1757627458710,-400.0,0.00027397,7]
[384921976,1757627458722,-2221.02613,0.00027397,7]
[384921977,1757627458732,-400.0,0.00027397,7]
[384921978,1757627458742,-2221.02613,0.00027397,7]
[384921979,1757627458751,-1597.41,0.00027397,7]
[384921980,1757627458761,-1787.37,0.00027397,7]
[384921981,1757627458770,-2221.02613,0.00027397,7]
[384921982,1757627458779,-1990.61,0.00027397,7]
[384921983,1757627458788,-400.0,0.00027397,7]
[384921984,1757627458796,-400.0,0.00027397,7]
[384921985,1757627458805,-151.0,0.00027397,7]
[384921986,1757627458814,-400.0,0.00027397,7]
[384921987,1757627458823,-151.0,0.00027397,7]
[384921988,1757627458832,-400.0,0.00027397,7]
[384921989,1757627458842,-400.0,0.00027397,7]
[384921990,1757627458851,-400.0,0.00027397,7]
[384921991,1757627458859,-400.0,0.00027397,5]
[384921992,1757627458868,-400.0,0.00027397,7]
[384921993,1757627458878,-400.0,0.00027397,7]
[384921994,1757627458887,-400.0,0.00027397,7]
[384921995,1757627458896,-400.0,0.00027397,7]
[384921996,1757627458905,-400.0,0.00027397,7]
[384921997,1757627458914,-400.0,0.00027397,7]
[384921998,1757627458923,-500.0,0.00027397,2]
[384921999,1757627458931,-400.0,0.00027397,7]
[384922000,1757627458940,-500.0,0.00027397,2]
[384922001,1757627458950,-500.0,0.00027397,2]
[384922002,1757627458959,-400.0,0.00027397,7]
[384922003,1757627458968,-400.0,0.00027397,7]
[384922004,1757627458978,-500.0,0.00027397,2]
[384922005,1757627458987,-2757.782727,0.00027397,7]
[384922006,1757627458997,-500.0,0.00027397,2]
[384922007,1757627459006,-2757.782727,0.00027397,7]
[384922008,1757627459016,-166.48714,0.00027397,7]
[384922009,1757627459025,-400.0,0.00027397,7]
[384922010,1757627459035,-400.0,0.00027397,7]
[384922011,1757627459046,-400.0,0.00027397,7]
[384922012,1757627459055,-1248.43751308,0.00027397,7]
[384922013,1757627459110,-588.77502464,0.00026889,2]
[384922014,1757627459120,-588.77502464,0.00026889,2]
[384922015,1757627459131,-1509.34521392,0.00027397,7]
[384922016,1757627459141,-300.0,0.00027397,2]
[384922017,1757627459150,-528.54,0.000274,2]
[384922018,1757627459160,-4591.67884233,0.00027412,2]
[384922019,1757627459170,-1467.98,0.00027425,30]
[384922020,1757627459180,-805.46369038,0.00027466,2]
[384922021,1757627459190,-4591.67884233,0.00027474,2]
[384922022,1757627459200,-357.794,0.00027476,16]
[384922023,1757627459210,-616.83,0.00027511,7]
[384922024,1757627459220,-616.83,0.00027511,7]
[384922025,1757627459230,-616.83,0.00027511,7]
[384922026,1757627459241,-616.83,0.00027511,7]
[384922027,1757627459250,-616.94,0.00027511,7]
[384922028,1757627459261,-615.88410899,0.00027528,2]
[384922029,1757627459271,-4591.67884233,0.00027536,2]
[384922030,1757627459279,-568.0,0.00027559,2]
[384922031,1757627459289,-1579.0,0.00027559,2]
[384922032,1757627459301,-601.0,0.00027559,2]
[384922033,1757627459311,-4167.0,0.00027559,2]
[384922034,1757627459320,-1047.0,0.00027571,5]
[384922035,1757627459329,-1062.66935905,0.00027571,2]
[384922036,1757627459338,-4591.67884233,0.00027597,2]
[384922037,1757627459347,-500.0,0.00027619,5]
[384922038,1757627459357,-1225.0,0.0002763,3]
[384922039,1757627459366,-2420.71130013,0.00027659,2]
[384922040,1757627459452,-588.77502464,0.00026889,2]
[384922041,1757627459462,-588.77502464,0.00026889,2]
[384922042,1757627459472,-400.0,0.00027397,7]
[384922043,1757627459482,-2170.9675422,0.00027659,2]
[384922044,1757627459491,-500.0,0.0002767,7]
[384922045,1757627459503,-165.11242753,0.0002767,7]
[384922046,1757627459511,-500.0,0.0002767,7]
[384922047,1757627459521,-500.0,0.0002767,7]
[384922048,1757627459532,-500.0,0.0002767,7]
[384922049,1757627459542,-500.0,0.0002767,2]
[384922050,1757627459552,-500.0,0.0002767,2]
[384922051,1757627459689,-500.0,0.0002767,2]
[384922052,1757627459699,-400.0,0.00027671,7]
[384922053,1757627459708,-400.0,0.00027671,7]
[384922054,1757627459717,-400.0,0.00027671,7]
[384922055,1757627459726,-400.0,0.00027671,7]
[384922056,1757627459735,-400.0,0.00027671,7]
[384922057,1757627459744,-436.24,0.00027671,7]
[384922058,1757627459753,-622.97,0.00027671,7]
[384922059,1757627459763,-405.84503527,0.00027671,7]
[384922060,1757627459772,-400.0,0.00027671,7]
[384922061,1757627459781,-400.0,0.00027671,7]
[384922062,1757627459791,-400.0,0.00027671,7]
[384922063,1757627459800,-602.77,0.00027671,7]
[384922064,1757627459809,-346.93411538,0.00027671,7]
[384922065,1757627459818,-1543.01,0.00027671,7]